fUSD/lending_fUSD_20251017
["ID","MTS","AMOUNT","RATE_DAILY","PERIOD"]
[391592789,1760683847953,-311.327317,0.000286,30]
[391592791,1760683847964,-460.00955,0.000286,30]
[391592793,1760683847974,-311.327317,0.000286,30]
[391592795,1760683847983,-151.0,0.000286,30]
[391592797,1760683847993,-307.14806,0.000286,30]
[391592799,1760683848008,-151.0,0.000286,30]
[391592802,1760683848020,-184.37177267,0.0002863,2]
[391592804,1760683848030,-184.37177267,0.0002863,2]
[391592806,1760683848041,-184.37177267,0.0002863,2]
[391592808,1760683848051,-184.37177267,0.0002863,2]
[391592810,1760683848061,-184.37177267,0.0002863,2]
[391592812,1760683848072,-184.37177267,0.0002863,2]
[391592814,1760683848083,-184.37177267,0.0002863,2]
[391592817,1760683848093,-500.0,0.0002863,2]
[391592819,1760683848104,-211.0,0.00028655,2]
[391592821,1760683848114,-211.0,0.00028672,2]
[391592823,1760683848124,-150.0,0.0002868,2]
[391592825,1760683848135,-239.20721283,0.0002868,2]
[391592827,1760683848145,-61302.44059281,0.0002868,2]
[391592829,1760683848155,-300.0,0.00028698,22]
[391592831,1760683848166,-199.0,0.00028767,11]
[391592833,1760683848179,-1100.0,0.00028792,7]
[391592835,1760683848190,-273.0,0.00028802,2]
[391592837,1760683848200,-525.0,0.00028901,2]
[391592839,1760683848210,-390.39619011,0.0002894,120]
[391592841,1760683848220,-1199.33,0.00028958,2]
[391592843,1760683848231,-184.37177267,0.00028959,2]
[391592846,1760683848241,-184.37177267,0.00028959,2]
[391592848,1760683848252,-184.37177267,0.00028959,2]
[391592850,1760683848262,-184.37177267,0.00028959,2]
[391592852,1760683848272,-184.37177267,0.00028959,2]
[391592854,1760683848283,-184.37177267,0.00028959,2]
[391592856,1760683848293,-184.37177267,0.00028959,2]
[391592858,1760683848303,-273.0,0.00028987,7]
[391592860,1760683848312,-565.51164948,0.00029,5]
[391592862,1760683848322,-30587.62648743,0.00029,12]
[391592864,1760683848333,-163.0,0.00029,30]
[391592866,1760683848343,-199.0,0.00029041,12]
[391592868,1760683848354,-1444.0,0.00029041,120]
[391592870,1760683848364,-211.0,0.0002905,2]
[391592873,1760683848381,-1200.0,0.00029066,7]
[391592875,1760683848391,-2946.775,0.00029101,2]
[391592877,1760683848402,-1267.0,0.00029101,2]
[391592879,1760683848412,-1047.529,0.00029101,2]
[391592882,1760683848424,-816.0,0.00029101,2]
[391592884,1760683848435,-4031.0,0.00029101,2]
[391592886,1760683848447,-2371.509,0.00029101,2]
[391592888,1760683848458,-557.0,0.00029101,2]
[391592890,1760683848468,-184.37177267,0.0002926,2]
[391592893,1760683848479,-184.37177267,0.0002926,2]
[391592895,1760683848490,-184.37177267,0.0002926,2]
[391592897,1760683848500,-184.37177267,0.0002926,2]
[391592899,1760683848510,-184.37177267,0.0002926,2]
[391592901,1760683848521,-184.37177267,0.0002926,2]
[391592903,1760683848531,-184.37177267,0.0002926,2]
[391592905,1760683848542,-200.0,0.00029261,120]
[391592907,1760683848553,-2398.66,0.00029286,2]
[391592909,1760683848565,-1199.33,0.00029286,2]
[391592911,1760683848576,-1199.33,0.00029286,2]
[391592913,1760683848586,-1199.33,0.00029286,2]
[391592916,1760683848596,-2398.66,0.00029286,2]
[391592918,1760683848607,-1199.33,0.00029286,2]
[391592920,1760683848617,-1199.33,0.00029286,2]
[391592922,1760683848628,-1199.33,0.00029286,2]
[391592924,1760683848639,-917.35,0.00029286,2]
[391592926,1760683848655,-1199.33,0.00029286,2]
[391592929,1760683848665,-450.0,0.00029315,16]
[391592931,1760683848680,-199.0,0.00029315,13]
[391592933,1760683848691,-3000.0,0.0002934,7]
[391592935,1760683848701,-26754.78,0.000294,2]
[391592937,1760683848712,-840.12,0.00029551,2]
[391592938,1760683848723,-286.36,0.00029589,14]
[391592939,1760683848739,-184.37177267,0.00029589,2]
[391592940,1760683848749,-184.37177267,0.00029589,2]
[391592941,1760683848760,-184.37177267,0.00029589,2]
[391592942,1760683848771,-184.37177267,0.00029589,2]
[391592943,1760683848782,-184.37177267,0.00029589,2]
[391592944,1760683848792,-184.37177267,0.00029589,2]
[391592945,1760683848803,-184.37177267,0.00029589,2]
[391592946,1760683848814,-1100.0,0.00029614,7]
[391592948,1760683848825,-2402.62,0.00029615,2]
[391592950,1760683848835,-1199.37,0.00029615,2]
[391592952,1760683848846,-1199.37,0.00029615,2]
[391592954,1760683848857,-1314.18,0.00029615,2]
[391592956,1760683848868,-1000.0,0.00029686,2]
[391592959,1760683848878,-8455.51564445,0.00029773,2]
[391592961,1760683848888,-355.24813543,0.00029773,2]
[391592963,1760683848899,-211.61912452,0.00029773,2]
[391592965,1760683848910,-1199.37,0.0002978,2]
[391592988,1760683849129,-150.92,0.00029825,2]
[391592990,1760683849141,-150.0,0.00029831,2]
[391592992,1760683849151,-150.0,0.00029831,2]
[391592994,1760683849162,-200.0,0.00029831,2]
[391592996,1760683849176,-150.0,0.00029831,2]
[391592999,1760683849187,-150.0,0.00029831,2]
[391593001,1760683849197,-500.0,0.00029831,2]
[391593003,1760683849207,-215.29702199,0.00029842,2]
[391593005,1760683849218,-150.0,0.00029886,2]
[391593007,1760683849228,-150.0,0.00029886,2]
[391593009,1760683849240,-500.0,0.00029886,2]
[391593012,1760683849251,-1200.0,0.00029888,7]
[391593014,1760683849261,-26361.94759936,0.000299,2]
[391593016,1760683849272,-2216.0,0.00029928,2]
[391593018,1760683849282,-516.53177944,0.00029941,2]
[391593020,1760683849293,-300.27,0.00029956,2]
[391593023,1760683849307,-500.0,0.00029999,120]
[391593025,1760683849317,-2000.0,0.00029999,120]
[391593027,1760683849328,-500.0,0.00029999,120]
[391593029,1760683849339,-500.0,0.00029999,120]
[391593031,1760683849349,-151.0,0.00029999,5]
[391593034,1760683849360,-3000.0,0.00029999,5]
[391593036,1760683849370,-3000.0,0.00029999,5]
[391593038,1760683849380,-152.1408671,0.00029999,5]
[391593040,1760683849391,-1343.15392496,0.00029999,5]
[391593042,1760683849401,-9211.34798985,0.00029999,5]
[391593044,1760683849412,-250.0,0.00029999,5]
[391593046,1760683849424,-9552.16786547,0.00029999,5]
[391593049,1760683849436,-250.0,0.00029999,5]
[391593051,1760683849446,-9905.5980765,0.00029999,5]
[391593053,1760683849456,-509.89880024,0.00029999,5]
[391593055,1760683849467,-10272.10520533,0.00029999,5]
[391593057,1760683849478,-10652.17309792,0.00029999,5]
[391593059,1760683849492,-11046.30350255,0.00029999,5]
[391593062,1760683849503,-11455.01673214,0.00029999,5]
[391593064,1760683849513,-11878.85235123,0.00029999,5]
[391593066,1760683849524,-12318.36988823,0.00029999,5]
[391593068,1760683849534,-1000.0,0.00029999,5]
[391593070,1760683849545,-12774.14957409,0.00029999,5]
[391593072,1760683849555,-1000.0,0.00029999,5]
[391593075,1760683849566,-13246.79310833,0.00029999,5]
[391593077,1760683849577,-1000.0,0.00029999,5]
[391593079,1760683849587,-1099.07961512,0.00029999,5]
[391593081,1760683849597,-250.0,0.00029999,5]
[391593083,1760683849608,-695.39793187,0.00029999,5]
[391593085,1760683849618,-1000.0,0.00029999,5]
[391593087,1760683849631,-668.65185757,0.00029999,5]
[391593089,1760683849643,-1000.0,0.00029999,5]
[391593092,1760683849656,-250.0,0.00029999,5]
[391593094,1760683849667,-721.12765535,0.00029999,5]
[391593096,1760683849679,-1000.0,0.00029999,5]
[391593098,1760683849691,-693.3919763,0.00029999,5]
[391593100,1760683849701,-1000.0,0.00029999,5]
[391593102,1760683849712,-250.0,0.00029999,5]
[391593104,1760683849724,-721.12765535,0.00029999,5]
[391593106,1760683849734,-1000.0,0.00029999,5]
[391593109,1760683849746,-547.84481494,0.00029999,5]
[391593111,1760683849757,-1000.0,0.00029999,5]
[391593113,1760683849767,-250.0,0.00029999,5]
[391593115,1760683849778,-162.79438484,0.00029999,5]
[391593117,1760683849788,-1000.0,0.00029999,5]
[391593119,1760683849798,-250.0,0.00029999,5]
[391593121,1760683849809,-1000.0,0.00029999,5]
[391593123,1760683849819,-1000.0,0.00029999,5]
[391593126,1760683849830,-151.0,0.00029999,5]
[391593128,1760683849840,-250.0,0.00029999,5]
[391593130,1760683849854,-1000.0,0.00029999,5]
[391593132,1760683849864,-1000.0,0.00029999,5]
[391593134,1760683849874,-250.31078022,0.00029999,5]
[391593136,1760683849884,-1000.0,0.00029999,5]
[391593139,1760683849895,-250.0,0.00029999,5]
[391593141,1760683849905,-1000.0,0.00029999,5]
[391593143,1760683849916,-1000.0,0.00029999,5]
[391593145,1760683849929,-1000.0,0.00029999,5]
[391593147,1760683849940,-250.0,0.00029999,5]
[391593150,1760683849952,-1000.0,0.00029999,5]
[391593152,1760683849963,-1000.0,0.00029999,5]
[391593154,1760683849973,-1000.0,0.00029999,5]
[391593156,1760683849984,-250.0,0.00029999,5]
[391593158,1760683849994,-1000.0,0.00029999,5]
[391593160,1760683850004,-1000.0,0.00029999,5]
[391593162,1760683850014,-250.0,0.00029999,5]
[391593164,1760683850024,-1000.0,0.00029999,5]
[391593166,1760683850035,-1000.0,0.00029999,5]
[391593169,1760683850046,-322.61070001,0.00029999,5]
[391593171,1760683850056,-250.0,0.00029999,5]
[391593173,1760683850067,-1000.0,0.00029999,5]
[391593175,1760683850078,-151.0,0.00029999,5]
[391593177,1760683850088,-977.5868239,0.00029999,5]
[391593179,1760683850099,-265.28173875,0.00029999,5]
[391593181,1760683850109,-250.0,0.00029999,5]
[391593184,1760683850120,-1000.0,0.00029999,5]
[391593186,1760683850130,-204.94019275,0.00029999,5]
[391593188,1760683850141,-1000.0,0.00029999,5]
[391593190,1760683850152,-1000.0,0.00029999,5]
[391593192,1760683850162,-1000.0,0.00029999,5]
[391593194,1760683850177,-1000.0,0.00029999,5]
[391593197,1760683850188,-1000.0,0.00029999,5]
[391593199,1760683850198,-151.0,0.00029999,5]
[391593201,1760683850209,-1000.0,0.00029999,5]
[391593203,1760683850219,-151.0,0.00029999,5]
[391593205,1760683850229,-151.0,0.00029999,5]
[391593207,1760683850239,-500.0,0.00029999,5]
[391593210,1760683850263,-500.0,0.00029999,5]
[391593213,1760683850275,-500.0,0.00029999,5]
[391593215,1760683850286,-500.0,0.00029999,5]
[391593217,1760683850297,-337.04050925,0.00029999,5]
[391593269,1760683850816,-549.03453246,0.00029999,5]
[391593272,1760683850829,-156948.92285913,0.0003,5]
[391593274,1760683850840,-184.24072926,0.0003,2]
[391593276,1760683850851,-163.0,0.0003,30]
[391593278,1760683850863,-1790.97277427,0.0003,5]
[391593280,1760683850875,-609.28270779,0.0003,2]
[391593283,1760683850886,-227.20282924,0.0003,2]
[391593285,1760683850897,-163.0,0.0003,30]
[391593287,1760683850908,-460.54822105,0.0003,2]
[391593289,1760683850919,-929.22914,0.0003,2]
[391593291,1760683850935,-150.0,0.00030058,2]
[391593293,1760683850945,-152385.81293269,0.00030058,2]
[391593295,1760683850957,-150.0,0.0003006,120]
[391593297,1760683850968,-150.0,0.00030078,120]
[391593298,1760683850978,-1199.33,0.00030108,2]
[391593299,1760683850988,-1199.37,0.00030108,2]
[391593300,1760683850998,-1199.37,0.00030108,2]
[391593301,1760683851009,-1199.37,0.00030108,2]
[391593302,1760683851019,-1199.37,0.00030108,2]
[391593303,1760683851029,-1199.37,0.00030108,2]
[391593304,1760683851040,-1199.37,0.00030108,2]
[391593306,1760683851051,-1199.37,0.00030108,2]
[391593308,1760683851063,-1199.37,0.00030108,2]
[391593310,1760683851073,-1199.37,0.00030108,2]
[391593312,1760683851084,-1199.37,0.00030108,2]
[391593314,1760683851095,-1199.37,0.00030108,2]
[391593316,1760683851105,-1199.37,0.00030108,2]
[391593319,1760683851116,-1199.37,0.00030108,2]
[391593321,1760683851126,-184.24072926,0.0003011,2]
[391593323,1760683851137,-46588.0,0.0003011,2]
[391593325,1760683851147,-356.9168768,0.00030124,120]
[391593327,1760683851158,-477.25384346,0.0003013,5]
[391593329,1760683851168,-150.0,0.00030132,120]
[391593332,1760683851185,-829.44,0.00030136,17]
[391593334,1760683851195,-829.44,0.00030136,17]
[391593336,1760683851206,-829.44,0.00030136,17]
[391593338,1760683851217,-829.44,0.00030136,17]
[391593340,1760683851228,-829.44,0.00030136,17]
[391593342,1760683851238,-829.44,0.00030136,17]
[391593344,1760683851249,-829.44,0.00030136,17]
[391593346,1760683851260,-829.44,0.00030136,17]
[391593349,1760683851271,-829.44,0.00030136,17]
[391593351,1760683851281,-829.44,0.00030136,17]
[391593353,1760683851291,-829.44,0.00030136,17]
[391593355,1760683851302,-829.44,0.00030136,17]
[391593357,1760683851312,-829.44,0.00030136,17]
[391593359,1760683851323,-829.44,0.00030136,17]
[391593361,1760683851334,-829.44,0.00030136,17]
[391593363,1760683851344,-829.44,0.00030136,17]
[391593366,1760683851354,-829.44,0.00030136,17]
[391593368,1760683851364,-829.44,0.00030136,17]
[391593370,1760683851375,-829.44,0.00030136,17]
[391593372,1760683851385,-829.44,0.00030136,17]
[391593374,1760683851395,-829.44,0.00030136,17]
[391593376,1760683851406,-829.44,0.00030136,17]
[391593378,1760683851416,-829.44,0.00030136,17]
[391593381,1760683851431,-829.64315027,0.00030136,17]
[391593383,1760683851441,-500.0,0.00030136,17]
[391593385,1760683851451,-500.0,0.00030136,17]
[391593387,1760683851461,-500.0,0.00030136,17]
[391593389,1760683851472,-500.0,0.00030136,17]
[391593391,1760683851483,-500.0,0.00030136,17]
[391593393,1760683851493,-500.0,0.00030136,17]
[391593395,1760683851504,-500.0,0.00030136,17]
[391593397,1760683851514,-500.0,0.00030136,17]
[391593400,1760683851525,-413.87201724,0.00030136,17]
[391593402,1760683851539,-500.0,0.00030136,17]
[391593404,1760683851550,-500.0,0.00030136,17]
[391593406,1760683851561,-500.0,0.00030136,17]
[391593409,1760683851571,-500.0,0.00030136,17]
[391593411,1760683851582,-238.16,0.00030136,17]
[391593413,1760683851593,-500.0,0.00030136,17]
[391593415,1760683851604,-500.0,0.00030136,17]
[391593417,1760683851615,-177.30733345,0.00030136,17]
[391593419,1760683851625,-500.0,0.00030136,17]
[391593421,1760683851636,-500.0,0.00030136,17]
[391593423,1760683851649,-500.0,0.00030136,17]
[391593426,1760683851660,-500.0,0.00030136,17]
[391593428,1760683851671,-500.0,0.00030136,17]
[391593430,1760683851683,-500.0,0.00030136,17]
[391593432,1760683851694,-500.0,0.00030136,17]
[391593434,1760683851704,-500.0,0.00030136,17]
[391593436,1760683851714,-500.0,0.00030136,17]
[391593439,1760683851726,-500.0,0.00030136,17]
[391593441,1760683851741,-500.0,0.00030136,17]
[391593443,1760683851752,-500.0,0.00030136,17]
[391593445,1760683851762,-500.0,0.00030136,17]
[391593447,1760683851772,-500.0,0.00030136,17]
[391593449,1760683851782,-500.0,0.00030136,17]
[391593451,1760683851792,-500.0,0.00030136,17]
[391593453,1760683851803,-500.0,0.00030136,17]
[391593455,1760683851813,-500.0,0.00030136,17]
[391593458,1760683851824,-500.0,0.00030136,17]
[391593460,1760683851834,-500.0,0.00030136,17]
[391593462,1760683851844,-500.0,0.00030136,17]
[391593464,1760683851854,-500.0,0.00030136,17]
[391593466,1760683851864,-500.0,0.00030136,17]
[391593468,1760683851875,-261.94,0.00030136,17]
[391593470,1760683851885,-500.0,0.00030136,17]
[391593472,1760683851896,-500.0,0.00030136,17]
[391593475,1760683851906,-500.0,0.00030136,17]
[391593477,1760683851917,-500.0,0.00030136,17]
[391593479,1760683851936,-500.0,0.00030136,17]
[391593482,1760683851946,-500.0,0.00030136,17]
[391593484,1760683851957,-500.0,0.00030136,17]
[391593486,1760683851968,-500.0,0.00030136,16]
[391593488,1760683851979,-500.0,0.00030136,16]
[391593490,1760683851990,-500.0,0.00030136,16]
[391593492,1760683852001,-500.0,0.00030136,16]
[391593494,1760683852012,-500.0,0.00030136,16]
[391593496,1760683852022,-500.0,0.00030136,16]
[391593498,1760683852032,-500.0,0.00030136,16]
[391593500,1760683852042,-500.0,0.00030136,16]
[391593503,1760683852052,-500.0,0.00030136,16]
[391593505,1760683852063,-500.0,0.00030136,16]
[391593507,1760683852073,-500.0,0.00030136,16]
[391593509,1760683852084,-500.0,0.00030136,16]
[391593511,1760683852094,-500.0,0.00030136,16]
[391593513,1760683852105,-500.0,0.00030136,16]
[391593515,1760683852115,-500.0,0.00030136,16]
[391593517,1760683852125,-500.0,0.00030136,16]
[391593520,1760683852135,-402.33138201,0.00030136,16]
[391593522,1760683852146,-500.0,0.00030136,2]
[391593524,1760683852156,-500.0,0.00030136,2]
[391593526,1760683852166,-500.0,0.00030136,2]
[391593528,1760683852179,-500.0,0.00030136,2]
[391593530,1760683852189,-500.0,0.00030136,2]
[391593532,1760683852200,-228.14186512,0.00030136,2]
[391593534,1760683852211,-500.0,0.00030136,17]
[391593536,1760683852222,-500.0,0.00030136,17]
[391593539,1760683852232,-500.0,0.00030136,17]
[391593541,1760683852243,-500.0,0.00030136,17]
[391593543,1760683852253,-500.0,0.00030136,17]
[391593545,1760683852263,-500.0,0.00030136,17]
[391593547,1760683852273,-500.0,0.00030136,17]
[391593549,1760683852284,-500.0,0.00030136,7]
[391593551,1760683852295,-500.0,0.00030136,7]
[391593555,1760683852319,-387.62770014,0.00030136,17]
[391593557,1760683852333,-895.42,0.00030136,17]
[391593559,1760683852343,-895.42,0.00030136,17]
[391593562,1760683852355,-895.42,0.00030136,17]
[391593564,1760683852365,-895.42,0.00030136,17]
[391593566,1760683852376,-895.42,0.00030136,17]
[391593568,1760683852387,-895.42,0.00030136,17]
[391593570,1760683852397,-895.42,0.00030136,17]
[391593572,1760683852408,-895.42,0.00030136,17]
[391593574,1760683852419,-895.42,0.00030136,17]
[391593577,1760683852436,-895.42,0.00030136,17]
[391593579,1760683852446,-895.42,0.00030136,17]
[391593581,1760683852457,-895.42,0.00030136,17]
[391593583,1760683852468,-895.42,0.00030136,17]
[391593585,1760683852479,-895.42,0.00030136,17]
[391593587,1760683852489,-895.42,0.00030136,17]
[391593589,1760683852500,-895.42,0.00030136,17]
[391593591,1760683852510,-500.0,0.00030136,17]
[391593594,1760683852521,-500.0,0.00030136,17]
[391593596,1760683852532,-500.0,0.00030136,17]
[391593598,1760683852542,-500.0,0.00030136,17]
[391593600,1760683852552,-500.0,0.00030136,17]
[391593602,1760683852563,-500.0,0.00030136,17]
[391593604,1760683852573,-500.0,0.00030136,17]
[391593606,1760683852584,-500.0,0.00030136,17]
[391593609,1760683852595,-500.0,0.00030136,17]
[391593611,1760683852605,-500.0,0.00030136,17]
[391593613,1760683852616,-500.0,0.00030136,17]
[391593615,1760683852627,-500.0,0.00030136,17]
[391593617,1760683852639,-500.0,0.00030136,17]
[391593619,1760683852653,-500.0,0.00030136,17]
[391593621,1760683852663,-500.0,0.00030136,17]
[391593624,1760683852678,-500.0,0.00030136,17]
[391593626,1760683852696,-500.0,0.00030136,17]
[391593629,1760683852709,-500.0,0.00030136,17]
[391593631,1760683852719,-500.0,0.00030136,17]
[391593633,1760683852730,-500.0,0.00030136,17]
[391593635,1760683852740,-500.0,0.00030136,17]
[391593637,1760683852751,-500.0,0.00030136,17]
[391593639,1760683852762,-500.0,0.00030136,17]
[391593642,1760683852773,-500.0,0.00030136,17]
[391593644,1760683852784,-500.0,0.00030136,17]
[391593646,1760683852798,-500.0,0.00030136,17]
[391593649,1760683852809,-500.0,0.00030136,17]
[391593651,1760683852820,-500.0,0.00030136,17]
[391593653,1760683852830,-500.0,0.00030136,17]
[391593655,1760683852841,-500.0,0.00030136,17]
[391593657,1760683852851,-243.43442882,0.00030136,17]
[391593659,1760683852861,-500.0,0.00030136,17]
[391593661,1760683852872,-500.0,0.00030136,17]
[391593664,1760683852882,-500.0,0.00030136,17]
[391593666,1760683852894,-511.34,0.00030136,17]
[391593668,1760683852905,-861.45,0.00030136,17]
[391593670,1760683852915,-861.45,0.00030136,17]
[391593672,1760683852929,-861.45,0.00030136,17]
[391593674,1760683852940,-861.45,0.00030136,17]
[391593677,1760683852951,-861.45,0.00030136,17]
[391593679,1760683852961,-861.45,0.00030136,17]
[391593681,1760683852971,-861.45,0.00030136,17]
[391593683,1760683852981,-861.45,0.00030136,17]
[391593685,1760683852992,-861.45,0.00030136,17]
[391593686,1760683853002,-861.45,0.00030136,17]
[391593687,1760683853012,-861.45,0.00030136,17]
[391593688,1760683853023,-861.45,0.00030136,17]
[391593689,1760683853039,-861.45,0.00030136,17]
[391593690,1760683853050,-861.45,0.00030136,17]
[391593691,1760683853061,-861.45,0.00030136,17]
[391593692,1760683853072,-861.45,0.00030136,17]
[391593695,1760683853083,-861.45,0.00030136,17]
[391593697,1760683853094,-861.45,0.00030136,17]
[391593699,1760683853105,-861.45,0.00030136,17]
[391593701,1760683853116,-861.45,0.00030136,17]
[391593703,1760683853126,-861.45,0.00030136,17]
[391593705,1760683853137,-861.45,0.00030136,17]
[391593707,1760683853148,-861.45,0.00030136,17]
[391593709,1760683853159,-861.66633767,0.00030136,17]
[391593712,1760683853171,-620.24,0.00030136,17]
[391593714,1760683853187,-620.24,0.00030136,17]
[391593716,1760683853198,-620.24,0.00030136,17]
[391593718,1760683853209,-620.24,0.00030136,17]
[391593720,1760683853220,-620.24,0.00030136,17]
[391593722,1760683853230,-620.24,0.00030136,17]
[391593724,1760683853241,-620.24,0.00030136,17]
[391593726,1760683853251,-620.24,0.00030136,17]
[391593728,1760683853262,-620.24,0.00030136,17]
[391593731,1760683853272,-620.24,0.00030136,17]
[391593733,1760683853283,-620.24,0.00030136,17]
[391593735,1760683853294,-620.24,0.00030136,17]
[391593737,1760683853304,-620.24,0.00030136,17]
[391593739,1760683853315,-620.24,0.00030136,17]
[391593741,1760683853325,-620.24,0.00030136,17]
[391593743,1760683853336,-620.24,0.00030136,17]
[391593745,1760683853346,-620.24,0.00030136,17]
[391593748,1760683853356,-620.24,0.00030136,17]
[391593750,1760683853366,-620.24,0.00030136,17]
[391593752,1760683853376,-620.24,0.00030136,17]
[391593754,1760683853391,-620.24,0.00030136,17]
[391593756,1760683853402,-620.24,0.00030136,17]
[391593758,1760683853412,-620.24,0.00030136,17]
[391593761,1760683853423,-620.38313592,0.00030136,17]
[391593763,1760683853435,-500.0,0.00030136,17]
[391593765,1760683853446,-500.0,0.00030136,17]
[391593767,1760683853456,-500.0,0.00030136,17]
[391593769,1760683853467,-219.2160192,0.00030136,17]
[391593771,1760683853482,-560.44240522,0.00030136,17]
[391593773,1760683853497,-500.0,0.00030136,17]
[391593793,1760683853694,-500.0,0.00030136,17]
[391593795,1760683853705,-500.0,0.00030136,17]
[391593797,1760683853715,-500.0,0.00030136,17]
[391593799,1760683853727,-500.0,0.00030136,17]
[391593801,1760683853737,-500.0,0.00030136,17]
[391593803,1760683853747,-500.0,0.00030136,17]
[391593805,1760683853756,-500.0,0.00030136,17]
[391593807,1760683853766,-500.0,0.00030136,17]
[391593809,1760683853775,-500.0,0.00030136,17]
[391593811,1760683853785,-500.0,0.00030136,17]
[391593813,1760683853795,-500.0,0.00030136,17]
[391593815,1760683853805,-500.0,0.00030136,17]
[391593817,1760683853815,-500.0,0.00030136,17]
[391593819,1760683853824,-500.0,0.00030136,17]
[391593821,1760683853834,-500.0,0.00030136,17]
[391593823,1760683853843,-545.17,0.00030136,17]
[391593825,1760683853853,-500.0,0.00030136,17]
[391593827,1760683853863,-500.0,0.00030136,17]
[391593829,1760683853872,-525.02294251,0.00030136,17]
[391593831,1760683853882,-500.0,0.00030136,17]
[391593833,1760683853891,-500.0,0.00030136,17]
[391593835,1760683853901,-500.0,0.00030136,17]
[391593838,1760683853911,-500.0,0.00030136,17]
[391593840,1760683853921,-500.0,0.00030136,17]
[391593842,1760683853934,-500.0,0.00030136,17]
[391593844,1760683853943,-500.0,0.00030136,17]
[391593846,1760683853953,-241.50764139,0.00030136,17]
[391593848,1760683853963,-217.52496832,0.00030136,17]
[391593850,1760683853973,-166.95736586,0.00030136,17]
[391593852,1760683853983,-272.84008414,0.00030136,17]
[391593854,1760683853994,-326.05969319,0.00030136,17]
[391593856,1760683854004,-260.09913201,0.00030136,17]
[391593858,1760683854014,-196.0068559,0.00030136,17]
[391593860,1760683854024,-279.97132101,0.00030136,17]
[391593862,1760683854034,-199.93012215,0.00030136,17]
[391593864,1760683854044,-500.0,0.00030136,17]
[391593866,1760683854054,-500.0,0.00030136,17]
[391593868,1760683854063,-151.78455674,0.00030136,17]
[391593870,1760683854074,-371.88997068,0.00030136,17]
[391593872,1760683854084,-278.68699954,0.00030136,17]
[391593874,1760683854094,-186.63809836,0.00030136,17]
[391593876,1760683854104,-234.58273312,0.00030136,17]
[391593878,1760683854113,-212.87304576,0.00030136,17]
[391593880,1760683854123,-238.9538837,0.00030136,17]
[391593882,1760683854133,-500.0,0.00030136,17]
[391593884,1760683854143,-622.03551351,0.00030136,17]
[391593886,1760683854153,-558.06762802,0.00030136,17]
[391593888,1760683854170,-151.25383545,0.00030136,17]
[391593890,1760683854185,-222.28315863,0.00030136,17]
[391593892,1760683854195,-524.61489428,0.00030136,17]
[391593894,1760683854211,-152.97660371,0.00030136,17]
[391593896,1760683854222,-198.11855082,0.00030136,17]
[391593898,1760683854232,-259.11539446,0.00030136,17]
[391593900,1760683854242,-223.84935228,0.00030136,17]
[391593902,1760683854252,-405.08016093,0.00030136,17]
[391593904,1760683854262,-551.99046149,0.00030136,17]
[391593906,1760683854271,-171.81652161,0.00030136,17]
[391593909,1760683854282,-256.76818409,0.00030136,17]
[391593910,1760683854292,-393.68129277,0.00030136,17]
[391593913,1760683854303,-303.23713503,0.00030136,17]
[391593915,1760683854313,-369.39322661,0.00030136,17]